[Event "Live Chess"]
[Site "Chess.com"]
[Date "2023.05.21"]
[Round "-"]
[White "CheckThis4"]
[Black "gmnorfolk"]
[Result "1-0"]
[WhiteElo "2516"]
[BlackElo "2108"]
[TimeControl "300"]
[EndTime "18:31:09 PDT"]
[Termination "CheckThis4 won on time"]

1. d4 {[%clk 0:04:56.9]} 1... Nf6 {[%clk 0:04:58.4]} 2. Nc3 {[%clk 0:04:56.4]}
2... d5 {[%clk 0:04:55.7]} 3. e4 {[%clk 0:04:55.5]} 3... dxe4 {[%clk 0:04:50.2]}
4. f3 {[%clk 0:04:54.3]} 4... e3 {[%clk 0:04:36]} 5. Bxe3 {[%clk 0:04:51.7]}
5... e6 {[%clk 0:04:35.1]} 6. Bd3 {[%clk 0:04:49]} 6... Be7 {[%clk 0:04:34.7]}
7. Nge2 {[%clk 0:04:46.4]} 7... Nbd7 {[%clk 0:04:34.3]} 8. Qd2 {[%clk
0:04:45.2]} 8... c5 {[%clk 0:04:33.8]} 9. O-O-O {[%clk 0:04:40.2]} 9... a6
{[%clk 0:04:33.2]} 10. g4 {[%clk 0:04:37.4]} 10... Nd5 {[%clk 0:04:23.6]} 11.
Nxd5 {[%clk 0:04:35.2]} 11... exd5 {[%clk 0:04:21.6]} 12. dxc5 {[%clk
0:04:33.7]} 12... Nxc5 {[%clk 0:04:19.1]} 13. Bxc5 {[%clk 0:04:26.9]} 13... Bxc5
{[%clk 0:04:17]} 14. Nf4 {[%clk 0:04:25.3]} 14... O-O {[%clk 0:04:07.8]} 15.
Nxd5 {[%clk 0:04:19]} 15... Be6 {[%clk 0:04:02.6]} 16. Be4 {[%clk 0:04:16.3]}
16... Bxd5 {[%clk 0:03:54.5]} 17. Qxd5 {[%clk 0:04:14.1]} 17... Qc7 {[%clk
0:03:36.1]} 18. Kb1 {[%clk 0:04:04.5]} 18... Rab8 {[%clk 0:03:31.5]} 19. h4
{[%clk 0:03:56.5]} 19... Rfd8 {[%clk 0:03:22.6]} 20. Qb3 {[%clk 0:03:50.7]}
20... Rxd1+ {[%clk 0:03:16.8]} 21. Rxd1 {[%clk 0:03:48.7]} 21... Rd8 {[%clk
0:03:11.8]} 22. Rxd8+ {[%clk 0:03:34.1]} 22... Qxd8 {[%clk 0:03:09.4]} 23. a3
{[%clk 0:03:20.3]} 23... b6 {[%clk 0:02:56.5]} 24. h5 {[%clk 0:03:18]} 24... h6
{[%clk 0:02:52.9]} 25. Qc4 {[%clk 0:03:10.3]} 25... a5 {[%clk 0:02:47.8]} 26.
Bd5 {[%clk 0:02:57.5]} 26... Qe7 {[%clk 0:02:40.7]} 27. Qd3 {[%clk 0:02:52.8]}
27... Qe1+ {[%clk 0:02:29.3]} 28. Ka2 {[%clk 0:02:51.3]} 28... Qe3 {[%clk
0:02:24.5]} 29. Qf5 {[%clk 0:02:43.4]} 29... Qe7 {[%clk 0:02:18.5]} 30. c4
{[%clk 0:02:29.3]} 30... Kf8 {[%clk 0:02:05.8]} 31. Qh7 {[%clk 0:02:20.6]} 31...
Qf6 {[%clk 0:01:59]} 32. Qh8+ {[%clk 0:02:15]} 32... Ke7 {[%clk 0:01:57.6]} 33.
Qc8 {[%clk 0:02:12.3]} 33... Qd6 {[%clk 0:01:38.9]} 34. Qb7+ {[%clk 0:02:04.1]}
34... Qd7 {[%clk 0:01:34.9]} 35. Qxd7+ {[%clk 0:02:00.7]} 35... Kxd7 {[%clk
0:01:34.8]} 36. Bxf7 {[%clk 0:01:59.9]} 36... Ke7 {[%clk 0:01:28.8]} 37. Bd5
{[%clk 0:01:58.4]} 37... Kd6 {[%clk 0:01:25.5]} 38. Kb3 {[%clk 0:01:57.5]} 38...
Be3 {[%clk 0:01:22.6]} 39. Ka4 {[%clk 0:01:55.3]} 39... Kc5 {[%clk 0:01:19.8]}
40. b4+ {[%clk 0:01:53.2]} 40... axb4 {[%clk 0:01:15.4]} 41. axb4+ {[%clk
0:01:53.1]} 41... Kd6 {[%clk 0:01:14]} 42. Kb5 {[%clk 0:01:52.7]} 42... Bf2
{[%clk 0:01:10.9]} 43. Be4 {[%clk 0:01:51.1]} 43... Be3 {[%clk 0:01:09.4]} 44.
f4 {[%clk 0:01:40.9]} 44... Bf2 {[%clk 0:01:04.4]} 45. Bg2 {[%clk 0:01:37.3]}
45... Be3 {[%clk 0:01:02.9]} 46. g5 {[%clk 0:01:33.2]} 46... Kc7 {[%clk
0:00:56.8]} 47. gxh6 {[%clk 0:01:29.1]} 47... gxh6 {[%clk 0:00:54.5]} 48. f5
{[%clk 0:01:25.4]} 48... Bd4 {[%clk 0:00:51.2]} 49. c5 {[%clk 0:01:21.8]} 49...
bxc5 {[%clk 0:00:49.1]} 50. bxc5 {[%clk 0:01:21.7]} 50... Bf6 {[%clk 0:00:45.1]}
51. Kc4 {[%clk 0:01:19.9]} 51... Bg5 {[%clk 0:00:31.4]} 52. Kd5 {[%clk
0:01:19.3]} 52... Kd7 {[%clk 0:00:29.8]} 53. c6+ {[%clk 0:01:13.9]} 53... Ke7
{[%clk 0:00:27.8]} 54. Ke5 {[%clk 0:01:03.8]} 54... Bh4 {[%clk 0:00:26.9]} 55.
Kf4 {[%clk 0:00:52.2]} 55... Kd6 {[%clk 0:00:23.3]} 56. Be4 {[%clk 0:00:47.3]}
56... Bf6 {[%clk 0:00:22.2]} 57. Ke3 {[%clk 0:00:46.5]} 57... Kc7 {[%clk
0:00:19.6]} 58. Kd3 {[%clk 0:00:45.7]} 58... Kd6 {[%clk 0:00:18]} 59. Kc4 {[%clk
0:00:45.3]} 59... Bd8 {[%clk 0:00:16.7]} 60. Kb5 {[%clk 0:00:44.4]} 60... Ke5
{[%clk 0:00:16.1]} 61. Bc2 {[%clk 0:00:41.8]} 61... Kd6 {[%clk 0:00:14.5]} 62.
Ba4 {[%clk 0:00:40.4]} 62... Bc7 {[%clk 0:00:13.5]} 63. Ka6 {[%clk 0:00:39]}
63... Bd8 {[%clk 0:00:12.1]} 64. Kb7 {[%clk 0:00:38.3]} 64... Ba5 {[%clk
0:00:10.7]} 65. Bc2 {[%clk 0:00:35.4]} 65... Bc7 {[%clk 0:00:08]} 66. Bb3 {[%clk
0:00:34.5]} 66... Ba5 {[%clk 0:00:06.7]} 67. f6 {[%clk 0:00:33.9]} 67... Bd8
{[%clk 0:00:03.1]} 68. f7 {[%clk 0:00:32.8]} 68... Ke7 {[%clk 0:00:02.6]} 69. c7
{[%clk 0:00:31.6]} 69... Bxc7 {[%clk 0:00:00.7]} 70. Kxc7 {[%clk 0:00:31.5]} 1-0

[Event "Live Chess"]
[Site "Chess.com"]
[Date "2023.05.21"]
[Round "-"]
[White "Duke_of_Bebington"]
[Black "therealab0ne"]
[Result "1-0"]
[WhiteElo "1581"]
[BlackElo "716"]
[TimeControl "300"]
[EndTime "18:31:10 PDT"]
[Termination "Duke_of_Bebington won by resignation"]

1. e4 {[%clk 0:04:57.9]} 1... c5 {[%clk 0:04:59.4]} 2. c3 {[%clk 0:04:56.4]}
2... e5 {[%clk 0:04:53.8]} 3. Bc4 {[%clk 0:04:41.5]} 3... Nf6 {[%clk 0:04:47.9]}
4. d3 {[%clk 0:04:38.8]} 4... b6 {[%clk 0:04:39.8]} 5. Nf3 {[%clk 0:04:36.4]}
5... d6 {[%clk 0:04:35.2]} 6. Bg5 {[%clk 0:04:34.6]} 6... Bb7 {[%clk 0:04:32.4]}
7. O-O {[%clk 0:04:32.9]} 7... Qc7 {[%clk 0:04:27.6]} 8. Re1 {[%clk 0:04:26.9]}
8... Nbd7 {[%clk 0:04:26.1]} 9. Nbd2 {[%clk 0:04:21.5]} 9... Bc6 {[%clk
0:04:24.2]} 10. Qb3 {[%clk 0:04:15.5]} 10... Qb7 {[%clk 0:04:22.9]} 11. Bxf7+
{[%clk 0:04:13.4]} 11... Kd8 {[%clk 0:04:16.9]} 12. Be6 {[%clk 0:03:57.5]} 12...
Kc7 {[%clk 0:04:00.6]} 13. h3 {[%clk 0:03:41.4]} 13... d5 {[%clk 0:03:56.4]} 14.
exd5 {[%clk 0:03:38.8]} 14... Bxd5 {[%clk 0:03:55.3]} 15. Bxd5 {[%clk
0:03:35.9]} 15... Nxd5 {[%clk 0:03:54.1]} 16. Nxe5 {[%clk 0:03:29.4]} 16... Re8
{[%clk 0:03:26.8]} 17. Nf7 {[%clk 0:03:10]} 17... Rxe1+ {[%clk 0:03:11.2]} 18.
Rxe1 {[%clk 0:03:07.7]} 18... Be7 {[%clk 0:03:08.8]} 19. Bxe7 {[%clk 0:03:03.3]}
19... Re8 {[%clk 0:03:02.9]} 20. Bd6+ {[%clk 0:02:59.5]} 1-0

[Event "Live Chess"]
[Site "Chess.com"]
[Date "2023.05.21"]
[Round "-"]
[White "smoggyrabbit"]
[Black "LiamBellwood"]
[Result "1-0"]
[WhiteElo "1757"]
[BlackElo "2045"]
[TimeControl "300"]
[EndTime "18:31:15 PDT"]
[Termination "smoggyrabbit won on time"]

1. d4 {[%clk 0:04:56.7]} 1... e6 {[%clk 0:04:59.4]} 2. Nf3 {[%clk 0:04:55.1]}
2... f5 {[%clk 0:04:58.9]} 3. e3 {[%clk 0:04:53.4]} 3... Nf6 {[%clk 0:04:58.3]}
4. Be2 {[%clk 0:04:52.6]} 4... b6 {[%clk 0:04:54.1]} 5. O-O {[%clk 0:04:47.4]}
5... Bb7 {[%clk 0:04:53.5]} 6. b3 {[%clk 0:04:46.6]} 6... Be7 {[%clk 0:04:48]}
7. Bb2 {[%clk 0:04:45.2]} 7... O-O {[%clk 0:04:45.8]} 8. c4 {[%clk 0:04:41.7]}
8... Ne4 {[%clk 0:04:45.3]} 9. Nbd2 {[%clk 0:04:36.2]} 9... Bf6 {[%clk
0:04:41.3]} 10. Qc2 {[%clk 0:04:26.1]} 10... a5 {[%clk 0:04:32.7]} 11. Rac1
{[%clk 0:04:03.7]} 11... Qe8 {[%clk 0:04:27.4]} 12. d5 {[%clk 0:03:30.8]} 12...
exd5 {[%clk 0:04:02.2]} 13. cxd5 {[%clk 0:03:26.8]} 13... Bxd5 {[%clk
0:03:38.3]} 14. Bxf6 {[%clk 0:03:24.1]} 14... Rxf6 {[%clk 0:03:35.1]} 15. Qxc7
{[%clk 0:03:13.4]} 15... Rg6 {[%clk 0:03:02.9]} 16. Qc8 {[%clk 0:02:44.1]} 16...
Nc6 {[%clk 0:02:22.1]} 17. Qxe8+ {[%clk 0:02:33.8]} 17... Rxe8 {[%clk 0:02:22]}
18. Nc4 {[%clk 0:02:19.7]} 18... b5 {[%clk 0:02:03.8]} 19. Nb6 {[%clk
0:02:04.6]} 19... Bf7 {[%clk 0:01:29.7]} 20. Nxd7 {[%clk 0:01:58.9]} 20... Re7
{[%clk 0:01:16.9]} 21. Rfd1 {[%clk 0:01:42.2]} 21... Be8 {[%clk 0:00:42.1]} 22.
Nc5 {[%clk 0:01:32.5]} 22... Ne5 {[%clk 0:00:35.7]} 23. Nxe5 {[%clk 0:01:23.3]}
23... Rxe5 {[%clk 0:00:34.2]} 24. Nxe4 {[%clk 0:01:21.5]} 24... fxe4 {[%clk
0:00:26.3]} 25. Rc8 {[%clk 0:01:16.4]} 25... Rge6 {[%clk 0:00:20.8]} 26. Rdd8
{[%clk 0:01:05.3]} 26... Kf7 {[%clk 0:00:19.9]} 27. Rc7+ {[%clk 0:00:55.6]}
27... Re7 {[%clk 0:00:18.6]} 28. Rxe7+ {[%clk 0:00:52.8]} 28... Kxe7 {[%clk
0:00:17.5]} 29. Rb8 {[%clk 0:00:46.8]} 29... b4 {[%clk 0:00:16.5]} 30. Rb7+
{[%clk 0:00:44.7]} 30... Kf6 {[%clk 0:00:13.5]} 31. Bc4 {[%clk 0:00:35.5]} 31...
Rc5 {[%clk 0:00:09.8]} 32. Rb6+ {[%clk 0:00:33.5]} 32... Ke7 {[%clk 0:00:08.3]}
33. Re6+ {[%clk 0:00:32.2]} 33... Kd7 {[%clk 0:00:06.7]} 34. Rxe4 {[%clk
0:00:30.4]} 34... Bf7 {[%clk 0:00:04.2]} 35. Rd4+ {[%clk 0:00:26.5]} 35... Ke7
{[%clk 0:00:02.9]} 36. h3 {[%clk 0:00:24.5]} 36... Bxc4 {[%clk 0:00:01.6]} 37.
Rxc4 {[%clk 0:00:23.3]} 37... Rd5 {[%clk 0:00:01]} 38. Rd4 {[%clk 0:00:21.3]}
38... Rxd4 {[%clk 0:00:00.2]} 39. exd4 {[%clk 0:00:20.4]} 39... Kd6 {[%clk
0:00:00.1]} 40. f3 {[%clk 0:00:18.8]} 1-0

[Event "Live Chess"]
[Site "Chess.com"]
[Date "2023.05.21"]
[Round "-"]
[White "WelshTiger"]
[Black "chessfiction"]
[Result "0-1"]
[WhiteElo "2355"]
[BlackElo "2353"]
[TimeControl "300"]
[EndTime "18:31:27 PDT"]
[Termination "chessfiction won by resignation"]

1. e4 {[%clk 0:04:53.2]} 1... d5 {[%clk 0:04:58.8]} 2. exd5 {[%clk 0:04:51.6]}
2... c6 {[%clk 0:04:58.7]} 3. dxc6 {[%clk 0:04:49.6]} 3... Nxc6 {[%clk
0:04:58.6]} 4. Nf3 {[%clk 0:04:46.5]} 4... e5 {[%clk 0:04:58.5]} 5. d3 {[%clk
0:04:44.3]} 5... Bc5 {[%clk 0:04:57.2]} 6. Nc3 {[%clk 0:04:42.5]} 6... Bg4
{[%clk 0:04:56.3]} 7. Ne4 {[%clk 0:04:40.9]} 7... Bb6 {[%clk 0:04:51.6]} 8. h3
{[%clk 0:04:38.8]} 8... Bh5 {[%clk 0:04:50.3]} 9. Ng3 {[%clk 0:04:37.9]} 9...
Bg6 {[%clk 0:04:49.4]} 10. Be2 {[%clk 0:04:36.8]} 10... Nf6 {[%clk 0:04:47.2]}
11. Be3 {[%clk 0:04:35.9]} 11... Nd4 {[%clk 0:04:44.4]} 12. Bxd4 {[%clk
0:04:34.1]} 12... exd4 {[%clk 0:04:42.9]} 13. Ne5 {[%clk 0:04:29.4]} 13... Ba5+
{[%clk 0:04:35.4]} 14. Kf1 {[%clk 0:04:28.2]} 14... O-O {[%clk 0:04:33.2]} 15.
h4 {[%clk 0:04:25.6]} 15... Qd5 {[%clk 0:04:24.4]} 16. Nc4 {[%clk 0:04:20.4]}
16... h5 {[%clk 0:04:17.5]} 17. Bf3 {[%clk 0:04:18.4]} 17... Qc5 {[%clk
0:04:15.8]} 18. a3 {[%clk 0:04:11.5]} 18... Bc7 {[%clk 0:04:14.8]} 19. Ne2
{[%clk 0:04:07.2]} 19... Rfe8 {[%clk 0:04:11.7]} 20. g3 {[%clk 0:03:56.4]} 20...
Qf5 {[%clk 0:04:02.9]} 21. Kg2 {[%clk 0:03:53.2]} 21... Ng4 {[%clk 0:04:01.9]}
22. Qd2 {[%clk 0:03:43.9]} 22... b5 {[%clk 0:03:54.3]} 23. Na5 {[%clk
0:03:38.6]} 23... Bxa5 {[%clk 0:03:50.9]} 24. Qxa5 {[%clk 0:03:36.8]} 24... Rxe2
{[%clk 0:03:50.5]} 25. Rhf1 {[%clk 0:03:26.1]} 25... Ne3+ {[%clk 0:03:47.1]} 26.
Kg1 {[%clk 0:03:08.5]} 26... Qxf3 {[%clk 0:03:31]} 0-1

[Event "Live Chess"]
[Site "Chess.com"]
[Date "2023.05.21"]
[Round "-"]
[White "domrobson"]
[Black "romchyk1219"]
[Result "1-0"]
[WhiteElo "1747"]
[BlackElo "640"]
[TimeControl "300"]
[EndTime "18:31:47 PDT"]
[Termination "domrobson won by checkmate"]

1. d4 {[%clk 0:04:59.4]} 1... Nf6 {[%clk 0:04:58.5]} 2. c4 {[%clk 0:04:58.8]}
2... g6 {[%clk 0:04:57.9]} 3. Nc3 {[%clk 0:04:58.1]} 3... Bg7 {[%clk 0:04:57.2]}
4. e4 {[%clk 0:04:57.6]} 4... O-O {[%clk 0:04:56.3]} 5. Be2 {[%clk 0:04:57.2]}
5... d6 {[%clk 0:04:53.2]} 6. Bg5 {[%clk 0:04:56.4]} 6... Nc6 {[%clk 0:04:51.1]}
7. d5 {[%clk 0:04:54.6]} 7... Ne5 {[%clk 0:04:46]} 8. f3 {[%clk 0:04:53.6]} 8...
Bd7 {[%clk 0:04:42.4]} 9. g4 {[%clk 0:04:52.2]} 9... c5 {[%clk 0:04:30.3]} 10.
h4 {[%clk 0:04:45.7]} 10... a6 {[%clk 0:04:23.3]} 11. a4 {[%clk 0:04:43.3]}
11... Qa5 {[%clk 0:04:10.5]} 12. Bd2 {[%clk 0:04:40.4]} 12... Ne8 {[%clk
0:03:41.5]} 13. f4 {[%clk 0:04:29.7]} 13... Nxc4 {[%clk 0:03:35.8]} 14. Bxc4
{[%clk 0:04:27.8]} 14... Bxc3 {[%clk 0:03:29.3]} 15. Bxc3 {[%clk 0:04:24.6]}
15... Qc7 {[%clk 0:03:22.6]} 16. f5 {[%clk 0:04:22.5]} 16... gxf5 {[%clk
0:03:21.3]} 17. gxf5 {[%clk 0:04:21.4]} 17... Ng7 {[%clk 0:03:17]} 18. h5 {[%clk
0:04:15.2]} 18... e6 {[%clk 0:03:14.7]} 19. h6 {[%clk 0:04:13.8]} 19... Ne8
{[%clk 0:03:12.4]} 20. Qg4+ {[%clk 0:04:12]} 20... Ng7 {[%clk 0:03:06.1]} 21.
Qxg7# {[%clk 0:04:11.9]} 1-0

[Event "Live Chess"]
[Site "Chess.com"]
[Date "2023.05.21"]
[Round "-"]
[White "Hussamalhaidar"]
[Black "LodeshChess"]
[Result "0-1"]
[WhiteElo "1098"]
[BlackElo "1176"]
[TimeControl "300"]
[EndTime "18:32:14 PDT"]
[Termination "LodeshChess won by resignation"]

1. b3 {[%clk 0:04:58.4]} 1... d5 {[%clk 0:04:55.2]} 2. Bb2 {[%clk 0:04:57.2]}
2... Nc6 {[%clk 0:04:51.2]} 3. Nf3 {[%clk 0:04:56.4]} 3... Nf6 {[%clk
0:04:46.8]} 4. e3 {[%clk 0:04:55.4]} 4... Bg4 {[%clk 0:04:45.2]} 5. Be2 {[%clk
0:04:53.6]} 5... Bxf3 {[%clk 0:04:43.8]} 6. Bxf3 {[%clk 0:04:52.4]} 6... e5
{[%clk 0:04:41]} 7. d3 {[%clk 0:04:44.8]} 7... Bb4+ {[%clk 0:04:34.4]} 8. Nd2
{[%clk 0:04:43.5]} 8... O-O {[%clk 0:04:21.8]} 9. a3 {[%clk 0:04:39.3]} 9...
Bxd2+ {[%clk 0:04:14.2]} 10. Qxd2 {[%clk 0:04:37.3]} 10... e4 {[%clk 0:04:13.8]}
11. dxe4 {[%clk 0:04:33.7]} 11... dxe4 {[%clk 0:04:12.9]} 12. Qd7 {[%clk
0:04:16.7]} 12... Qxd7 {[%clk 0:04:11.3]} 0-1

[Event "Live Chess"]
[Site "Chess.com"]
[Date "2023.05.21"]
[Round "-"]
[White "IgorSchukin"]
[Black "Biranidun"]
[Result "0-1"]
[WhiteElo "1783"]
[BlackElo "2579"]
[TimeControl "300"]
[EndTime "18:32:40 PDT"]
[Termination "Biranidun won on time"]

1. e4 {[%clk 0:04:58.4]} 1... c5 {[%clk 0:04:57.2]} 2. a3 {[%clk 0:04:56.6]}
2... g6 {[%clk 0:04:55.2]} 3. Nc3 {[%clk 0:04:55.5]} 3... Bg7 {[%clk 0:04:54]}
4. Bc4 {[%clk 0:04:54.4]} 4... Nc6 {[%clk 0:04:52.6]} 5. d3 {[%clk 0:04:52.7]}
5... e6 {[%clk 0:04:51.9]} 6. Nf3 {[%clk 0:04:51.8]} 6... Nge7 {[%clk
0:04:49.9]} 7. O-O {[%clk 0:04:49.9]} 7... d5 {[%clk 0:04:48.9]} 8. Ba2 {[%clk
0:04:47.2]} 8... O-O {[%clk 0:04:47.9]} 9. Bg5 {[%clk 0:04:45.8]} 9... h6 {[%clk
0:04:46.7]} 10. Bh4 {[%clk 0:04:44.5]} 10... g5 {[%clk 0:04:42.4]} 11. Bxg5
{[%clk 0:04:38.5]} 11... hxg5 {[%clk 0:04:41.4]} 12. Nxg5 {[%clk 0:04:37.7]}
12... f6 {[%clk 0:04:37.7]} 13. Nh3 {[%clk 0:04:36.4]} 13... Nd4 {[%clk
0:04:27.7]} 14. f4 {[%clk 0:04:28.7]} 14... c4 {[%clk 0:03:59.5]} 15. dxc4
{[%clk 0:04:21.7]} 15... dxe4 {[%clk 0:03:58]} 16. Nxe4 {[%clk 0:04:17.5]} 16...
Qb6 {[%clk 0:03:56.2]} 17. Kh1 {[%clk 0:04:02.1]} 17... Nef5 {[%clk 0:03:54]}
18. Re1 {[%clk 0:03:17.8]} 18... Qxb2 {[%clk 0:03:48.6]} 19. c5 {[%clk
0:03:08.8]} 19... Nxc2 {[%clk 0:03:43.1]} 20. Nd6 {[%clk 0:02:39.7]} 20... Nce3
{[%clk 0:02:52.4]} 21. Qf3 {[%clk 0:02:16.4]} 21... Bd7 {[%clk 0:02:38.6]} 22.
Nxf5 {[%clk 0:01:46.4]} 22... Nxf5 {[%clk 0:02:38.5]} 23. Qb3 {[%clk 0:01:28.8]}
23... Qxb3 {[%clk 0:02:35.2]} 24. Bxb3 {[%clk 0:01:27.2]} 24... Nd4 {[%clk
0:02:34.7]} 25. Bc4 {[%clk 0:01:20.4]} 25... Nc2 {[%clk 0:02:33.8]} 26. f5
{[%clk 0:00:48.1]} 26... Rfe8 {[%clk 0:02:05]} 27. Nf4 {[%clk 0:00:42.2]} 27...
Nxe1 {[%clk 0:02:02.1]} 28. Rxe1 {[%clk 0:00:40.1]} 28... Bh6 {[%clk 0:01:27.6]}
29. fxe6 {[%clk 0:00:28.7]} 29... Bc6 {[%clk 0:01:26.5]} 30. e7+ {[%clk
0:00:23.6]} 30... Kh8 {[%clk 0:01:26.1]} 31. Ng6+ {[%clk 0:00:18.8]} 31... Kg7
{[%clk 0:01:25.5]} 32. Nh4 {[%clk 0:00:10.7]} 32... Bd7 {[%clk 0:01:25]} 0-1

[Event "Live Chess"]
[Site "Chess.com"]
[Date "2023.05.21"]
[Round "-"]
[White "PaulyD81"]
[Black "manthanit"]
[Result "1-0"]
[WhiteElo "1169"]
[BlackElo "1051"]
[TimeControl "300"]
[EndTime "18:33:25 PDT"]
[Termination "PaulyD81 won by resignation"]

1. d4 {[%clk 0:04:56.9]} 1... e6 {[%clk 0:04:59.1]} 2. c4 {[%clk 0:04:55.4]}
2... d5 {[%clk 0:04:58.2]} 3. cxd5 {[%clk 0:04:45.3]} 3... exd5 {[%clk
0:04:57.1]} 4. Nc3 {[%clk 0:04:44.3]} 4... h6 {[%clk 0:04:54.7]} 5. e4 {[%clk
0:04:35.8]} 5... Nf6 {[%clk 0:04:52.7]} 6. e5 {[%clk 0:04:22]} 6... Nfd7 {[%clk
0:04:48.6]} 7. Nxd5 {[%clk 0:04:19.7]} 7... Nc6 {[%clk 0:04:39.8]} 8. Nf3 {[%clk
0:04:15.9]} 8... Bb4+ {[%clk 0:04:34.3]} 9. Bd2 {[%clk 0:04:12.8]} 9... Ndxe5
{[%clk 0:04:16.4]} 10. Nxb4 {[%clk 0:04:05]} 10... Nxb4 {[%clk 0:04:14.1]} 11.
Bxb4 {[%clk 0:04:02.9]} 11... Nxf3+ {[%clk 0:04:11.8]} 12. gxf3 {[%clk
0:03:53.3]} 12... Bf5 {[%clk 0:04:03]} 13. Bd3 {[%clk 0:03:48.3]} 13... b6
{[%clk 0:04:01.3]} 14. Bxf5 {[%clk 0:03:46.2]} 14... c5 {[%clk 0:04:00.1]} 15.
dxc5 {[%clk 0:03:32.2]} 15... Qxd1+ {[%clk 0:03:58.4]} 16. Rxd1 {[%clk
0:03:30.2]} 16... bxc5 {[%clk 0:03:58]} 17. Bxc5 {[%clk 0:03:27.1]} 17... Rc8
{[%clk 0:03:55.8]} 18. Bxc8 {[%clk 0:03:23.6]} 1-0

[Event "Live Chess"]
[Site "Chess.com"]
[Date "2023.05.21"]
[Round "-"]
[White "Doge_Dandolo"]
[Black "Fazer180"]
[Result "0-1"]
[WhiteElo "1908"]
[BlackElo "1763"]
[TimeControl "300"]
[EndTime "18:33:42 PDT"]
[Termination "Fazer180 won by checkmate"]

1. Nf3 {[%clk 0:04:57.8]} 1... e6 {[%clk 0:04:59.9]} 2. c4 {[%clk 0:04:56.4]}
2... d5 {[%clk 0:04:58.9]} 3. g3 {[%clk 0:04:55.3]} 3... Nf6 {[%clk 0:04:57]} 4.
Bg2 {[%clk 0:04:54.3]} 4... c6 {[%clk 0:04:55.7]} 5. O-O {[%clk 0:04:53.2]} 5...
Be7 {[%clk 0:04:51.1]} 6. d4 {[%clk 0:04:52.2]} 6... O-O {[%clk 0:04:48.3]} 7.
Qc2 {[%clk 0:04:50.6]} 7... dxc4 {[%clk 0:04:41.6]} 8. Qxc4 {[%clk 0:04:45.5]}
8... Nbd7 {[%clk 0:04:39]} 9. Rd1 {[%clk 0:04:43.4]} 9... Nb6 {[%clk 0:04:37.5]}
10. Qc2 {[%clk 0:04:40.9]} 10... Bd7 {[%clk 0:04:25.4]} 11. Nc3 {[%clk
0:04:37.4]} 11... Rc8 {[%clk 0:04:18.2]} 12. a4 {[%clk 0:04:29.9]} 12... Nbd5
{[%clk 0:04:09.5]} 13. e4 {[%clk 0:04:25.4]} 13... Nxc3 {[%clk 0:04:03.6]} 14.
bxc3 {[%clk 0:04:24]} 14... c5 {[%clk 0:04:01.4]} 15. Qe2 {[%clk 0:04:18.2]}
15... Qa5 {[%clk 0:03:50.5]} 16. Qe3 {[%clk 0:04:08.5]} 16... cxd4 {[%clk
0:03:42.6]} 17. cxd4 {[%clk 0:04:06.8]} 17... Qc3 {[%clk 0:03:26.6]} 18. Ne5
{[%clk 0:03:52.5]} 18... Rfd8 {[%clk 0:02:41.2]} 19. Bd2 {[%clk 0:03:39.6]}
19... Qxe3 {[%clk 0:02:37.2]} 20. Bxe3 {[%clk 0:03:38.5]} 20... Rc2 {[%clk
0:02:31.9]} 21. Rdb1 {[%clk 0:03:32.7]} 21... b6 {[%clk 0:02:29.8]} 22. a5
{[%clk 0:03:29.5]} 22... b5 {[%clk 0:02:17.9]} 23. Nxd7 {[%clk 0:03:27.9]} 23...
Rxd7 {[%clk 0:02:10.5]} 24. Rxb5 {[%clk 0:03:26.9]} 24... h6 {[%clk 0:02:05.6]}
25. a6 {[%clk 0:03:09.7]} 25... Rdc7 {[%clk 0:02:03.3]} 26. Rb7 {[%clk
0:03:06.4]} 26... Ng4 {[%clk 0:01:52.1]} 27. Bf4 {[%clk 0:03:01.8]} 27... R7c4
{[%clk 0:01:30.7]} 28. Rxe7 {[%clk 0:02:54.7]} 28... Rxf2 {[%clk 0:01:26.3]} 29.
Rxa7 {[%clk 0:02:49.4]} 29... Rcc2 {[%clk 0:01:22.8]} 30. Bh3 {[%clk 0:02:45.7]}
30... Nxh2 {[%clk 0:01:16.9]} 31. Ra8+ {[%clk 0:02:38.9]} 31... Kh7 {[%clk
0:01:15]} 32. a7 {[%clk 0:02:37.3]} 32... Nf3+ {[%clk 0:01:13.6]} 33. Kh1 {[%clk
0:02:33.8]} 33... Rh2# {[%clk 0:01:12.8]} 0-1